[Event "LEM Niedersachsen-A-Open 2025"]
[Site "Verden"]
[Date "2025.01.03"]
[Round "4.17"]
[White "Moerke, Niklas"]
[Black "Reimer, Philip"]
[Result "0-1"]
[ECO "E32"]
[WhiteElo "1875"]
[BlackElo "2131"]
[Annotator "TA"]
[PlyCount "126"]
[EventDate "2024.12.27"]
[EventType "swiss"]
[EventCountry "GER"]
[SourceTitle "playchess.com"]
[Source "ChessBase"]
[SourceQuality "1"]
[TimeControl "40/5400+30:1800+30"]

{[%evp 12,126,71,68,86,80,81,54,56,56,62,61,57,60,92,116,104,106,122,75,68,69,122,122,123,79,114,109,174,178,143,23,232,233,412,417,454,470,464,461,462,455,439,131,100,108,162,105,174,0,0,0,0,0,10,-153,-132,-316,-327,-322,-314,-351,-343,-343,-332,-336,-336,-382,-368,-373,-394,-403,-400,-392,-374,-478,-480,-545,-543,-562,-562,-552,-538,-778,-765,-1030,-1012,-1001,-974,-1001,-930,-980,-937,-854,-809,-904,-869,-29975,-29978,-29977,-29978,-29978,-29979,-29982,-29983,-29983,-29984,-29984,-29985,-29985,-29986,-29986,-29987,-29987,-29988,-29988,-29989]} 1. d4 {[%emt 0:00:07]} Nf6 {[%emt 0:00:38]} 2. c4 {[%emt 0:00:07]} e6 {[%emt 0:00:07]} 3. Nc3 {[%emt 0:00:11]} Bb4 {[%emt 0:00:04]} 4. Qc2 {[%emt 0:00:10]} b6 {[%emt 0:00:46]} 5. e4 {[%emt 0:00:35]} Bb7 {[%emt 0:02:56]} 6. Bd3 {[%emt 0:00:39]} c5 {[%emt 0:00:16]} 7. d5 {[%emt 0:00:50]} d6 {[%emt 0:05:22]} 8. Nge2 {[%emt 0:01:30]} b5 {[%emt 0:04:35]} 9. b3 {[%emt 0:07:37]} bxc4 {[%emt 0:05:02]} 10. bxc4 {[%emt 0:00:56]} Nbd7 {[%emt 0:04:33]} 11. O-O {[%emt 0:02:01]} O-O {[%emt 0:04:08]} 12. f4 {[%emt 0:06:16]} exd5 {[%emt 0:01:00]} 13. exd5 {[%emt 0:01:57]} Bxc3 {[%emt 0:02:31]} 14. Nxc3 {[%emt 0:00:47]} Ba6 {[%emt 0:07:10]} 15. Ne4 {[%emt 0:02:22]} (15. a4 $142) 15... Nxe4 $16 {[%emt 0:00:26]} 16. Bxe4 {[%emt 0:00:02]} Nf6 {[%emt 0:00:29]} (16... Qh4 $14) 17. Bd3 {[%emt 0:00:17]} Re8 {[%emt 0:05:22]} 18. Bb2 {[%emt 0:04:30]} h6 {[%emt 0:02:49]} 19. Rae1 {[%emt 0:03:50]} Rxe1 {[%emt 0:05:11]} (19... Rb8 $16) 20. Rxe1 $18 {[%emt 0:11:33][%cal Bf1e1,Be1e3,Be3g3][%mdl 32]} Rb8 {[%emt 0:04:55]} 21. Qe2 {[%emt 0:02:18] Inhibits Nh5.} (21. Bc3 $16) 21... Nd7 $2 {[%emt 0:11:34]} (21... Nxd5 $1 $11 22. Qe4 g6 (22... Rxb2 23. Qh7+ Kf8 24. Qh8#) (22... Nf6 $2 23. Bxf6 g6 24. Bxd8 $18)) 22. Bc3 {[%emt 0:07:36]} Nf8 $2 {[%emt 0:11:25]} (22... Qh4 {was worth a try.} 23. Qe4 Nf8) 23. Qg4 {[%emt 0:03:07][%csl Gc3][%cal Rg4g7]} f6 {[%emt 0:02:34] Black is weak on the light squares} 24. Re3 {[%emt 0:03:04]} Bc8 {[%emt 0:00:39]} 25. Qh5 {[%emt 0:05:19]} Ba6 {[%emt 0:11:58]} 26. Rg3 {[%emt 0:03:02]} Kh8 {[%emt 0:01:13]} 27. Qg4 $2 {[%emt 0:05:16]} (27. Kf2 $18 {is more deadly.}) 27... Qe7 $16 {[%emt 0:00:39]} 28. Kf2 {[%emt 0:05:23]} Re8 {[%emt 0:00:41]} (28... Qf7 $16 29. Qd1 Bc8) 29. Bd2 {[%emt 0:03:18]} (29. Qh5 $18) 29... Bc8 {[%emt 0:02:43]} (29... Qf7 $16 30. Qd1 Bc8) 30. f5 $2 {[%emt 0:02:04]} ({White should try} 30. Qh5 $18 {Re3 is the strong threat.} Bd7 31. Re3) 30... Nd7 $1 $11 {[%emt 0:00:29]} 31. Qh5 {[%emt 0:05:00]} Ne5 $36 {[%emt 0:00:19][%mdl 2048] Black has the initiative.} 32. Bf1 {[%emt 0:01:01][%cal Od2h6]} Qf7 {[%emt 0:00:48]} 33. Qh4 $2 {[%emt 0:05:25]} (33. Qxf7 $11 Nxf7 34. Ra3) 33... Bxf5 $17 {[%emt 0:00:38]} 34. Bxh6 $2 {[%emt 0:02:35]} (34. Kg1 $17) 34... gxh6 $19 {[%emt 0:00:31]} 35. Qxh6+ {[%emt 0:00:51]} Bh7 {[%emt 0:00:06]} 36. Be2 {[%emt 0:01:39]} Rg8 {[%emt 0:01:15] aiming for ...Rxg3.} 37. Rb3 {[%emt 0:02:48]} Qg6 {[%emt 0:01:13]} 38. Qxg6 {[%emt 0:00:46]} Bxg6 {[%emt 0:00:09]} 39. Rb7 {[%emt 0:01:24]} Rg7 {[%emt 0:00:05]} 40. Rb8+ {[%emt 0:00:13] [#]} Kh7 $1 {[%emt 0:00:50]} 41. Ke3 {[%emt 0:05:17]} Re7 {[%emt 0:00:25]} 42. Kd2 {[%emt 0:01:29]} Be4 {[%emt 0:01:24]} 43. Bf1 {[%emt 0:00:26]} f5 {[%emt 0:00:40]} 44. h3 {[%emt 0:01:13]} Rg7 {[%emt 0:00:25]} 45. g4 {[%emt 0:00:20]} fxg4 {[%emt 0:00:26]} 46. hxg4 {[%emt 0:00:04]} Rxg4 {[%emt 0:01:06]} 47. Bh3 {[%emt 0:00:10]} Rg3 {[%emt 0:00:43]} 48. Rb7+ {[%emt 0:00:52]} Kh6 {[%emt 0:00:13]} 49. Bf1 {[%emt 0:00:29]} Ra3 {[%emt 0:00:40]} 50. Rb2 {[%emt 0:00:08]} Bd3 {[%emt 0:00:16]} 51. Bxd3 {[%emt 0:00:14]} Rxd3+ {[%emt 0:00:06][%mdl 4096] Endgame KRN-KR} 52. Kc2 {[%emt 0:00:57]} Rd4 {[%emt 0:00:07]} 53. Rb7 {[%emt 0:00:08]} Rxc4+ {[%emt 0:00:06]} 54. Kb3 {[%emt 0:00:05] [#]} Rb4+ $1 {[%emt 0:01:18]} 55. Rxb4 {[%emt 0:00:05]} cxb4 {[%emt 0:00:04]} 56. Kxb4 {[%emt 0:00:06] KN-KPP} Kg5 {[%emt 0:00:04]} 57. Kb5 {[%emt 0:00:15]} Kf4 {[%emt 0:00:10]} 58. Ka6 {[%emt 0:00:08]} Ke4 {[%emt 0:00:05]} 59. Kxa7 {[%emt 0:00:09]} Kxd5 {[%emt 0:00:04]} 60. Kb6 {[%emt 0:00:48]} Kc4 {[%emt 0:00:22]} 61. a4 {[%emt 0:00:40]} d5 {[%emt 0:00:23]} 62. a5 {[%emt 0:00:20]} Nd7+ {[%emt 0:00:05]} 63. Kc6 {[%emt 0:01:05]} Nc5 {[%emt 0:00:06]} 0-1

[Event "LEM Niedersachsen-A-Open 2025"]
[Site "Verden"]
[Date "2025.01.03"]
[Round "4.18"]
[White "Oblender, Rudi"]
[Black "Rieping, Lea"]
[Result "1/2-1/2"]
[ECO "B01"]
[WhiteElo "1779"]
[BlackElo "1973"]
[Annotator "NA RC"]
[PlyCount "71"]
[EventDate "2024.12.27"]
[EventType "swiss"]
[EventCountry "GER"]
[SourceTitle "playchess.com"]
[Source "ChessBase"]
[SourceQuality "1"]
[TimeControl "40/5400+30:1800+30"]

1. e4 {[%emt 0:00:02]} d5 {[%emt 0:00:03]} 2. exd5 {[%emt 0:00:08]} Qxd5 {[%emt 0:00:06]} 3. Nc3 {[%emt 0:00:03]} Qa5 {[%emt 0:00:03]} 4. Bc4 {[%emt 0:00:12]} Nf6 {[%emt 0:00:08]} 5. Nge2 {[%emt 0:00:16]} Bg4 {[%emt 0:00:48]} 6. O-O {[%emt 0:00:08]} Nc6 {[%emt 0:01:07]} 7. d3 {[%emt 0:00:08]} e6 {[%emt 0:10:27]} 8. Bd2 {[%emt 0:00:13]} Qc5 {[%emt 0:00:17]} 9. Be3 {[%emt 0:04:21]} Qd6 {[%emt 0:00:27]} 10. f3 {[%emt 0:00:25]} Bf5 {[%emt 0:00:50]} 11. Ng3 {[%emt 0:01:33]} Bg6 {[%emt 0:01:38]} 12. Nce4 {[%emt 0:01:06]} Bxe4 {[%emt 0:01:51]} 13. Nxe4 {[%emt 0:00:04]} Nxe4 {[%emt 0:02:15]} 14. fxe4 {[%emt 0:01:10]} Qd7 {[%emt 0:08:37]} 15. a3 {[%emt 0:01:36]} g6 {[%emt 0:05:39]} 16. d4 {[%emt 0:00:49]} Bg7 {[%emt 0:00:54]} 17. c3 {[%emt 0:00:19]} O-O {[%emt 0:02:50]} 18. Qd2 {[%emt 0:02:50]} Kh8 {[%emt 0:01:48]} 19. Bh6 {[%emt 0:00:54]} f5 {[%emt 0:00:20]} 20. e5 {[%emt 0:02:43]} Ne7 {[%emt 0:03:10]} 21. Bxg7+ {[%emt 0:02:11]} Kxg7 {[%emt 0:00:05]} 22. Qc2 {[%emt 0:02:32]} Nd5 {[%emt 0:00:28]} 23. Qb3 {[%emt 0:08:08]} c6 {[%emt 0:00:15]} 24. Bxd5 {[%emt 0:20:03]} cxd5 {[%emt 0:00:07]} 25. a4 {[%emt 0:03:45]} Rac8 {[%emt 0:04:42]} 26. Qb5 {[%emt 0:06:27]} Rf7 {[%emt 0:00:52]} 27. Qxd7 {[%emt 0:01:18]} Rxd7 {[%emt 0:00:05]} 28. Rfc1 {[%emt 0:00:08]} Rdc7 {[%emt 0:01:02]} 29. Kf2 {[%emt 0:00:58]} Rb8 {[%emt 0:09:16]} 30. Ke3 {[%emt 0:09:46]} b5 {[%emt 0:01:05]} 31. a5 {[%emt 0:01:16]} a6 {[%emt 0:00:55]} 32. b3 {[%emt 0:03:34]} Rbc8 {[%emt 0:00:53]} 33. Kd3 {[%emt 0:00:11]} Kf7 {[%emt 0:00:05]} 34. Ra2 {[%emt 0:00:29]} Ke7 {[%emt 0:00:51]} 35. Rac2 {[%emt 0:00:23]} Kd7 {[%emt 0:00:16]} 36. g3 {[%emt 0:00:49]} 1/2-1/2

[Event "LEM Niedersachsen-A-Open 2025"]
[Site "Verden"]
[Date "2025.01.03"]
[Round "4.19"]
[White "Boerma, Daniel"]
[Black "Aden, Keno"]
[Result "1-0"]
[ECO "B10"]
[WhiteElo "1958"]
[BlackElo "1889"]
[Annotator "NA RC"]
[PlyCount "79"]
[EventDate "2024.12.27"]
[EventType "swiss"]
[EventCountry "GER"]
[SourceTitle "playchess.com"]
[Source "ChessBase"]
[SourceQuality "1"]
[TimeControl "40/5400+30:1800+30"]

1. e4 {[%emt 0:00:02]} c6 {[%emt 0:00:03]} 2. d3 {[%emt 0:00:08]} d5 {[%emt 0:00:05]} 3. Nd2 {[%emt 0:00:05]} e5 {[%emt 0:01:00]} 4. Ngf3 {[%emt 0:00:10]} Bd6 {[%emt 0:00:24]} 5. g3 {[%emt 0:00:06]} Nf6 {[%emt 0:00:30]} 6. Bg2 {[%emt 0:00:11]} Be6 {[%emt 0:01:33]} 7. O-O {[%emt 0:00:38]} O-O {[%emt 0:00:34]} 8. Re1 {[%emt 0:00:09]} Qc7 {[%emt 0:04:39]} 9. Nf1 {[%emt 0:00:30]} Na6 {[%emt 0:03:12]} 10. Bg5 {[%emt 0:02:32]} Nd7 {[%emt 0:02:49]} 11. Nh4 {[%emt 0:01:59]} Rae8 {[%emt 0:10:02]} 12. Nf5 {[%emt 0:00:19]} f6 {[%emt 0:10:46]} 13. Bc1 {[%emt 0:01:03]} Ndc5 {[%emt 0:08:48]} 14. N1e3 {[%emt 0:01:24]} d4 {[%emt 0:06:15]} 15. Nxd6 {[%emt 0:01:07]} Qxd6 {[%emt 0:01:44]} 16. Nf5 {[%emt 0:00:07]} Bxf5 {[%emt 0:04:39]} 17. exf5 {[%emt 0:00:12]} Nc7 {[%emt 0:00:40]} 18. h4 {[%emt 0:00:45]} Nd5 {[%emt 0:03:21]} 19. Qg4 {[%emt 0:01:16]} Qd7 {[%emt 0:02:03]} 20. h5 {[%emt 0:00:20]} Kh8 {[%emt 0:02:44]} 21. Bh3 {[%emt 0:01:42]} Qf7 {[%emt 0:08:59]} 22. Qf3 {[%emt 0:01:19]} Re7 {[%emt 0:08:33]} 23. Bd2 {[%emt 0:00:43]} Rfe8 {[%emt 0:00:37]} 24. h6 {[%emt 0:04:36]} e4 {[%emt 0:01:09]} 25. hxg7+ {[%emt 0:00:35]} Qxg7 {[%emt 0:00:29]} 26. dxe4 {[%emt 0:01:07]} Nxe4 {[%emt 0:00:30]} 27. Qd3 {[%emt 0:04:07]} Nxd2 {[%emt 0:11:35]} 28. Qxd2 {[%emt 0:00:08]} Rxe1+ {[%emt 0:04:52]} 29. Rxe1 {[%emt 0:00:05]} Rxe1+ {[%emt 0:00:15]} 30. Qxe1 {[%emt 0:00:06]} Qe7 {[%emt 0:00:19]} 31. Qd1 {[%emt 0:04:21]} Qe5 {[%emt 0:01:33]} 32. a3 {[%emt 0:00:44]} c5 {[%emt 0:00:46]} 33. Qf3 {[%emt 0:01:39]} b6 {[%emt 0:00:40]} 34. Bg2 {[%emt 0:00:24]} Nc7 {[%emt 0:00:11]} 35. Qb7 {[%emt 0:00:48]} Nb5 {[%emt 0:01:04]} 36. Qf7 {[%emt 0:00:48]} h6 {[%emt 0:00:30]} 37. Bd5 {[%emt 0:00:27]} Qb8 {[%emt 0:00:32]} 38. Qxf6+ {[%emt 0:00:16]} Kh7 {[%emt 0:00:04]} 39. Qg6+ {[%emt 0:00:07]} Kh8 {[%emt 0:00:05]} 40. Qxh6# {[%emt 0:00:10]} 1-0

[Event "LEM Niedersachsen-A-Open 2025"]
[Site "Verden"]
[Date "2025.01.03"]
[Round "4.20"]
[White "Nolting, Dennis"]
[Black "Burnus, Finn Crispin"]
[Result "1/2-1/2"]
[ECO "C58"]
[WhiteElo "1937"]
[BlackElo "1883"]
[Annotator "NA RC"]
[PlyCount "86"]
[EventDate "2024.12.27"]
[EventType "swiss"]
[EventCountry "GER"]
[SourceTitle "playchess.com"]
[Source "ChessBase"]
[SourceQuality "1"]
[TimeControl "40/5400+30:1800+30"]

1. e4 {[%emt 0:00:04]} e5 {[%emt 0:00:04]} 2. Nf3 {[%emt 0:00:05]} Nc6 {[%emt 0:00:03]} 3. Bc4 {[%emt 0:00:04]} Nf6 {[%emt 0:00:04]} 4. Ng5 {[%emt 0:00:05]} d5 {[%emt 0:00:04]} 5. exd5 {[%emt 0:00:05]} Na5 {[%emt 0:00:04]} 6. Bb5+ {[%emt 0:00:05]} c6 {[%emt 0:00:04]} 7. dxc6 {[%emt 0:00:06]} bxc6 {[%emt 0:00:03]} 8. Qf3 {[%emt 0:00:06]} cxb5 {[%emt 0:00:10]} 9. Qxa8 {[%emt 0:00:06]} Qc7 {[%emt 0:00:05]} 10. Qf3 {[%emt 0:01:13]} Nc6 {[%emt 0:00:05]} 11. Nc3 {[%emt 0:00:36]} Nd4 {[%emt 0:03:12]} 12. Qd1 {[%emt 0:03:56]} h6 {[%emt 0:16:37]} 13. Nf3 {[%emt 0:07:53]} Bg4 {[%emt 0:00:14]} 14. h3 {[%emt 0:02:18]} Bxf3 {[%emt 0:00:53]} 15. gxf3 {[%emt 0:00:04]} b4 {[%emt 0:00:16]} 16. O-O {[%emt 0:00:53]} bxc3 {[%emt 0:00:10]} 17. dxc3 {[%emt 0:00:05]} Ne6 {[%emt 0:01:06]} 18. Qe2 {[%emt 0:00:50]} Bd6 {[%emt 0:01:32]} 19. Be3 {[%emt 0:05:14]} O-O {[%emt 0:01:12]} 20. Rad1 {[%emt 0:01:12]} Nh5 {[%emt 0:12:15]} 21. Qd3 {[%emt 0:10:39]} Rd8 {[%emt 0:01:14]} 22. Qf5 {[%emt 0:00:28]} g6 {[%emt 0:01:30]} 23. Qg4 {[%emt 0:01:15]} Nef4 {[%emt 0:00:09]} 24. Bxf4 {[%emt 0:02:19]} Nxf4 {[%emt 0:00:07]} 25. Rfe1 {[%emt 0:07:18]} Rb8 {[%emt 0:11:05]} 26. Rb1 {[%emt 0:07:29]} Qd8 {[%emt 0:06:37]} 27. Kh1 {[%emt 0:12:39]} h5 {[%emt 0:01:23]} 28. Qg3 {[%emt 0:00:21]} Qf6 {[%emt 0:03:30]} 29. b3 {[%emt 0:02:08]} Qf5 {[%emt 0:01:02]} 30. Rbd1 {[%emt 0:00:48]} Rb6 {[%emt 0:00:48]} 31. Re4 {[%emt 0:02:46]} Nxh3 {[%emt 0:01:38]} 32. Rxd6 {[%emt 0:07:17]} Rxd6 {[%emt 0:01:06]} 33. Rxe5 {[%emt 0:00:11]} Nxf2+ {[%emt 0:05:55]} 34. Kg2 {[%emt 0:04:07]} Qxc2 {[%emt 0:00:06]} 35. Re8+ {[%emt 0:00:40]} Kh7 {[%emt 0:00:07]} 36. Kf1 {[%emt 0:03:41]} Rd1+ {[%emt 0:04:42]} 37. Re1 {[%emt 0:00:04]} Rd2 {[%emt 0:05:41]} 38. Qf4 {[%emt 0:01:03]} Qd3+ {[%emt 0:09:37]} 39. Kg2 {[%emt 0:00:15]} Ne4+ {[%emt 0:02:42]} 40. Kh3 {[%emt 0:03:52]} Ng5+ {[%emt 0:05:04]} 41. Kg3 {[%emt 0:30:39]} Kh6 {[%emt 0:19:35]} 42. Re5 {[%emt 0:00:00]} f6 {[%emt 0:03:44]} 43. Rxg5 {[%emt 0:00:00]} fxg5 {[%emt 0:04:56]} 1/2-1/2

[Event "LEM Niedersachsen-A-Open 2025"]
[Site "Verden"]
[Date "2025.01.03"]
[Round "4.21"]
[White "Stoy, Ulf"]
[Black "Ehlert, Horst"]
[Result "1/2-1/2"]
[ECO "A36"]
[WhiteElo "1918"]
[BlackElo "1929"]
[Annotator "NA RC"]
[PlyCount "34"]
[EventDate "2024.12.27"]
[EventType "swiss"]
[EventCountry "GER"]
[SourceTitle "playchess.com"]
[Source "ChessBase"]
[SourceQuality "1"]
[TimeControl "40/5400+30:1800+30"]

1. c4 {[%emt 0:00:02]} c5 {[%emt 0:03:08]} 2. Nc3 {[%emt 0:00:45]} Nc6 {[%emt 0:00:31]} 3. g3 {[%emt 0:00:10]} g6 {[%emt 0:00:23]} 4. Bg2 {[%emt 0:00:10]} Bg7 {[%emt 0:00:09]} 5. e4 {[%emt 0:01:34]} e6 {[%emt 0:01:35]} 6. Nge2 {[%emt 0:00:19]} Nge7 {[%emt 0:01:10]} 7. O-O {[%emt 0:00:13]} O-O {[%emt 0:02:38]} 8. d3 {[%emt 0:00:45]} a6 {[%emt 0:02:30]} 9. Be3 {[%emt 0:02:00]} Nd4 {[%emt 0:03:07]} 10. Qd2 {[%emt 0:00:20]} Rb8 {[%emt 0:11:48]} 11. Bh6 {[%emt 0:02:47]} Nec6 {[%emt 0:04:36]} 12. Bxg7 {[%emt 0:01:53]} Kxg7 {[%emt 0:00:01]} 13. f4 {[%emt 0:03:42]} d6 {[%emt 0:09:33]} 14. Rf2 {[%emt 0:03:13]} f5 {[%emt 0:08:41]} 15. Re1 {[%emt 0:02:50]} Qa5 {[%emt 0:05:01]} 16. exf5 {[%emt 0:04:12]} gxf5 {[%emt 0:06:00]} 17. b3 {[%emt 0:15:26]} Bd7 {[%emt 0:15:30]} 1/2-1/2

[Event "LEM Niedersachsen-A-Open 2025"]
[Site "Verden"]
[Date "2025.01.03"]
[Round "4.22"]
[White "Kiesel, Lucas"]
[Black "Schramm, Kilian"]
[Result "1-0"]
[ECO "E19"]
[WhiteElo "2023"]
[BlackElo "1834"]
[Annotator "NA RC"]
[PlyCount "51"]
[EventDate "2024.12.27"]
[EventType "swiss"]
[EventCountry "GER"]
[SourceTitle "playchess.com"]
[Source "ChessBase"]
[SourceQuality "1"]
[TimeControl "40/5400+30:1800+30"]

1. d4 {[%emt 0:20:12]} Nf6 {[%emt 0:00:05]} 2. c4 {[%emt 0:00:02]} e6 {[%emt 0:00:04]} 3. Nf3 {[%emt 0:00:06]} b6 {[%emt 0:00:04]} 4. g3 {[%emt 0:00:03]} Bb7 {[%emt 0:00:04]} 5. Bg2 {[%emt 0:00:03]} Be7 {[%emt 0:00:04]} 6. O-O {[%emt 0:00:03]} O-O {[%emt 0:00:04]} 7. Nc3 {[%emt 0:00:06]} Ne4 {[%emt 0:00:11]} 8. Qc2 {[%emt 0:00:50]} Nxc3 {[%emt 0:00:05]} 9. Qxc3 {[%emt 0:00:28]} c5 {[%emt 0:00:05]} 10. dxc5 {[%emt 0:02:54]} Bxc5 {[%emt 0:00:53]} 11. b3 {[%emt 0:03:24]} Be7 {[%emt 0:02:19]} 12. Bb2 {[%emt 0:01:45]} Bf6 {[%emt 0:00:05]} 13. Qc2 {[%emt 0:00:48]} d5 {[%emt 0:01:55]} 14. Rad1 {[%emt 0:03:38]} Qe7 {[%emt 0:01:06]} 15. cxd5 {[%emt 0:01:19]} Bxb2 {[%emt 0:01:33]} 16. Qxb2 {[%emt 0:01:56]} Bxd5 {[%emt 0:00:12]} 17. Rfe1 {[%emt 0:10:08]} Qb7 {[%emt 0:02:08]} 18. e4 {[%emt 0:05:45]} Bc6 {[%emt 0:04:04]} 19. Nd4 {[%emt 0:01:19]} e5 {[%emt 0:01:33]} 20. Nf5 {[%emt 0:01:56]} Nd7 {[%emt 0:02:44]} 21. Rd6 {[%emt 0:07:13]} Rfe8 {[%emt 0:02:39]} 22. Qc2 {[%emt 0:02:18]} Rac8 {[%emt 0:01:22]} 23. Rc1 {[%emt 0:01:25]} Bxe4 {[%emt 0:05:11]} 24. Qxc8 {[%emt 0:00:37]} Rxc8 {[%emt 0:01:57]} 25. Rxc8+ {[%emt 0:00:01]} Nf8 {[%emt 0:00:08]} 26. Rxf8+ {[%emt 0:35:11]} 1-0

[Event "LEM Niedersachsen-A-Open 2025"]
[Site "Verden"]
[Date "2025.01.03"]
[Round "4.23"]
[White "Gehrke, Mathias"]
[Black "Eschholz, Enno"]
[Result "1-0"]
[ECO "B23"]
[WhiteElo "1873"]
[BlackElo "2121"]
[Annotator "NA RC"]
[PlyCount "61"]
[EventDate "2024.12.27"]
[EventType "swiss"]
[EventCountry "GER"]
[SourceTitle "playchess.com"]
[Source "ChessBase"]
[SourceQuality "1"]
[TimeControl "40/5400+30:1800+30"]

1. e4 {[%emt 0:00:04]} c5 {[%emt 0:00:04]} 2. Nc3 {[%emt 0:00:08]} Nc6 {[%emt 0:00:11]} 3. Bb5 {[%emt 0:00:09]} g6 {[%emt 0:00:31]} 4. Bxc6 {[%emt 0:00:08]} dxc6 {[%emt 0:00:14]} 5. d3 {[%emt 0:00:14]} Bg7 {[%emt 0:00:15]} 6. Nge2 {[%emt 0:00:46]} e5 {[%emt 0:01:53]} 7. Be3 {[%emt 0:00:56]} Qe7 {[%emt 0:02:27]} 8. h3 {[%emt 0:01:34]} Nf6 {[%emt 0:02:25]} 9. Qd2 {[%emt 0:00:27]} Nd7 {[%emt 0:01:01]} 10. O-O {[%emt 0:03:27]} Nf8 {[%emt 0:00:53]} 11. Bh6 {[%emt 0:02:16]} f6 {[%emt 0:08:04]} 12. Bxg7 {[%emt 0:00:12]} Qxg7 {[%emt 0:00:04]} 13. f4 {[%emt 0:00:59]} Ne6 {[%emt 0:02:53]} 14. Rf2 {[%emt 0:02:38]} O-O {[%emt 0:07:55]} 15. Raf1 {[%emt 0:00:13]} Bd7 {[%emt 0:01:08]} 16. Nd1 {[%emt 0:03:28]} b6 {[%emt 0:14:28]} 17. Ne3 {[%emt 0:03:06]} Nd4 {[%emt 0:08:39]} 18. Ng3 {[%emt 0:02:29]} exf4 {[%emt 0:01:34]} 19. Rxf4 {[%emt 0:00:07]} Rf7 {[%emt 0:03:33]} 20. c3 {[%emt 0:05:55]} Ne6 {[%emt 0:00:55]} 21. R4f2 {[%emt 0:02:22]} h5 {[%emt 0:01:45]} 22. e5 {[%emt 0:11:15]} f5 {[%emt 0:02:38]} 23. Nexf5 {[%emt 0:00:24]} gxf5 {[%emt 0:03:05]} 24. Nxf5 {[%emt 0:00:09]} Rxf5 {[%emt 0:00:46]} 25. Rxf5 {[%emt 0:00:06]} Rf8 {[%emt 0:00:23]} 26. Qe3 {[%emt 0:07:46]} Rxf5 {[%emt 0:02:56]} 27. Rxf5 {[%emt 0:00:03]} Qg6 {[%emt 0:01:57]} 28. Rf6 {[%emt 0:09:03]} Qg7 {[%emt 0:02:27]} 29. Kh2 {[%emt 0:09:43]} Nf8 {[%emt 0:03:30]} 30. Qe4 {[%emt 0:05:38]} Qg5 {[%emt 0:02:24]} 31. Qc4+ {[%emt 0:03:31]} 1-0

[Event "LEM Niedersachsen-A-Open 2025"]
[Site "Verden"]
[Date "2025.01.03"]
[Round "4.24"]
[White "Vormann, Dirk"]
[Black "Martin, Dennis"]
[Result "1/2-1/2"]
[ECO "D02"]
[WhiteElo "1860"]
[BlackElo "2005"]
[Annotator "NA RC"]
[PlyCount "119"]
[EventDate "2024.12.27"]
[EventType "swiss"]
[EventCountry "GER"]
[SourceTitle "playchess.com"]
[Source "ChessBase"]
[SourceQuality "1"]
[TimeControl "40/5400+30:1800+30"]

1. d4 {[%emt 0:00:03]} Nf6 {[%emt 0:00:01]} 2. Bf4 {[%emt 0:00:10]} d5 {[%emt 0:00:03]} 3. e3 {[%emt 0:00:05]} e6 {[%emt 0:00:07]} 4. Nf3 {[%emt 0:00:15]} Bd6 {[%emt 0:00:02]} 5. Bg3 {[%emt 0:00:09]} O-O {[%emt 0:00:05]} 6. Nbd2 {[%emt 0:00:36]} c5 {[%emt 0:00:02]} 7. c3 {[%emt 0:00:05]} Qc7 {[%emt 0:00:08]} 8. Bd3 {[%emt 0:01:02]} Nbd7 {[%emt 0:00:03]} 9. Bxd6 {[%emt 0:01:19]} Qxd6 {[%emt 0:00:03]} 10. O-O {[%emt 0:01:04]} e5 {[%emt 0:00:21]} 11. dxe5 {[%emt 0:00:05]} Nxe5 {[%emt 0:00:02]} 12. Nxe5 {[%emt 0:00:29]} Qxe5 {[%emt 0:00:03]} 13. Nf3 {[%emt 0:00:36]} Qe7 {[%emt 0:00:04]} 14. h3 {[%emt 0:01:04]} b6 {[%emt 0:00:15]} 15. Re1 {[%emt 0:03:14]} Bb7 {[%emt 0:06:52]} 16. Qc2 {[%emt 0:07:43]} Rfd8 {[%emt 0:00:24]} 17. Nd2 {[%emt 0:02:01]} Qc7 {[%emt 0:01:19]} 18. Be2 {[%emt 0:00:26]} Rd7 {[%emt 0:03:33]} 19. Bf3 {[%emt 0:01:06]} Rad8 {[%emt 0:00:04]} 20. Rad1 {[%emt 0:01:27]} Re8 {[%emt 0:02:37]} 21. Rc1 {[%emt 0:07:27]} Rde7 {[%emt 0:06:02]} 22. Qd3 {[%emt 0:04:22]} Ne4 {[%emt 0:08:20]} 23. Bxe4 {[%emt 0:00:08]} dxe4 {[%emt 0:00:04]} 24. Qe2 {[%emt 0:00:22]} Rd7 {[%emt 0:00:56]} 25. Rcd1 {[%emt 0:01:28]} Rd3 {[%emt 0:04:15]} 26. Nb3 {[%emt 0:00:13]} Ba6 {[%emt 0:00:37]} 27. Nc1 {[%emt 0:04:40]} Rxd1 {[%emt 0:00:15]} 28. Qxd1 {[%emt 0:00:02]} Bc4 {[%emt 0:03:05]} 29. b3 {[%emt 0:03:43]} Be6 {[%emt 0:01:13]} 30. Re2 {[%emt 0:04:31]} Qe5 {[%emt 0:00:50]} 31. Rd2 {[%emt 0:01:36]} Qg5 {[%emt 0:01:32]} 32. Kh2 {[%emt 0:02:51]} g6 {[%emt 0:00:10]} 33. Ne2 {[%emt 0:01:29]} Qf6 {[%emt 0:06:30]} 34. Kg1 {[%emt 0:00:54]} Kg7 {[%emt 0:00:55]} 35. Rd6 {[%emt 0:04:29]} Qe5 {[%emt 0:19:36]} 36. Qd2 {[%emt 0:02:06]} Re7 {[%emt 0:02:49]} 37. Nf4 {[%emt 0:01:42]} Bc8 {[%emt 0:00:46]} 38. Rd5 {[%emt 0:03:38]} Qc7 {[%emt 0:00:22]} 39. Rd6 {[%emt 0:03:03]} Rd7 {[%emt 0:04:00]} 40. Rxd7 {[%emt 0:01:38]} Qxd7 {[%emt 0:00:02]} 41. Qxd7 {[%emt 0:33:38]} Bxd7 {[%emt 0:32:34]} 42. Kf1 {[%emt 0:00:44]} Kf6 {[%emt 0:01:14]} 43. c4 {[%emt 0:02:04]} Bc6 {[%emt 0:00:41]} 44. Ne2 {[%emt 0:01:20]} Ke5 {[%emt 0:03:53]} 45. Nc3 {[%emt 0:00:17]} g5 {[%emt 0:00:39]} 46. g3 {[%emt 0:00:37]} h5 {[%emt 0:00:35]} 47. Kg2 {[%emt 0:00:23]} h4 {[%emt 0:00:29]} 48. Kh2 {[%emt 0:04:01]} a6 {[%emt 0:01:45]} 49. a4 {[%emt 0:00:22]} Bd7 {[%emt 0:01:34]} 50. Kg2 {[%emt 0:00:29]} Bc6 {[%emt 0:01:44]} 51. Kh2 {[%emt 0:00:13]} f5 {[%emt 0:01:30]} 52. Kg2 {[%emt 0:12:05]} Bd7 {[%emt 0:08:42]} 53. Kh2 {[%emt 0:00:11]} f4 {[%emt 0:01:26]} 54. g4 {[%emt 0:00:20]} Bc6 {[%emt 0:01:34]} 55. Kg2 {[%emt 0:00:17]} f3+ {[%emt 0:00:26]} 56. Kg1 {[%emt 0:00:44]} Kd6 {[%emt 0:00:24]} 57. Kf1 {[%emt 0:02:54]} Kc7 {[%emt 0:01:42]} 58. Ke1 {[%emt 0:04:12]} Kc8 {[%emt 0:00:28]} 59. Kf1 {[%emt 0:00:44]} Kc7 {[%emt 0:00:43]} 60. Ke1 {[%emt 0:00:08]} 1/2-1/2